bitfinex-derivatives/quotes_ETHF0:USTF0_20250329
["timestamp","ask_amount","ask_price","bid_price","bid_amount"]
[1743273051999,2.59,1820.2,1820.0,2.48721]
[1743273052996,3.2078,1820.5,1820.4,1.09907]
[1743273053895,3.2078,1820.5,1820.4,5.21807]
[1743273054096,3.2078,1820.5,1820.4,5.95767]
[1743273059813,5.7078,1820.5,1819.9,0.5496]
[1743273060025,4.30708,1820.1,1819.9,1.09934]
[1743273060317,4.30708,1820.1,1820.0,1.4828]
[1743273060513,1.09949,1819.7,1819.6,0.7207]
[1743273060715,3.2078,1819.8,1819.6,1.4828]
[1743273061312,1.09949,1819.7,1819.6,1.4828]
[1743273061710,1.09962,1819.5,1819.4,0.00824674]
[1743273061911,3.2078,1819.5,1819.4,2.59072674]
[1743273062719,8.4569,1819.5,1819.0,0.7136]
[1743273062915,8.4569,1819.5,1818.9,1.09995]
[1743273062916,3.2078,1819.2,1818.9,1.09996]
[1743273063216,1.4014,1819.1,1819.0,1.4207]
[1743273063623,2.50126,1819.1,1819.0,1.4207]
[1743273064109,1.09992,1819.0,1818.9,0.00824674]
[1743273064317,5.70912,1819.0,1818.9,0.00824674]
[1743273065314,1.1001,1818.7,1818.6,1.4207]
[1743273065516,3.2078,1818.8,1818.4,1.4207]
[1743273065716,3.2078,1818.9,1818.4,1.4207]
[1743273066021,4.30791,1818.7,1818.5,1.1002]
[1743273066211,1.10011,1818.7,1818.6,1.4263]
[1743273066412,4.30791,1818.7,1818.6,1.4263]
[1743273067014,1.10022,1818.5,1818.4,0.00824674]
[1743273067219,2.60988,1818.6,1818.4,2.53482674]
[1743273067619,2.6099,1818.6,1818.4,1.43454674]
[1743273068129,2.6099,1818.6,1818.4,2.53482674]
[1743273068630,1.10022,1818.5,1818.4,1.43454674]
[1743273069219,2.60992,1818.6,1818.4,2.53482674]
[1743273069414,1.10022,1818.5,1818.4,1.43454674]
[1743273070023,1.10022,1818.5,1818.4,0.00824674]
[1743273070221,4.30802,1818.5,1818.4,0.00824674]
[1743273071725,3.2078,1818.7,1818.4,0.00824674]
[1743273071926,3.2078,1818.7,1818.6,1.10016]
[1743273072315,5.81362,1818.9,1818.7,1.1001]
[1743273072518,5.81362,1818.9,1818.8,1.4538]
[1743273072924,3.2078,1819.1,1818.8,1.4538]
[1743273073127,0.00824674,1819.2,1819.1,1.09986]
[1743273073325,3.2078,1819.5,1819.4,1.09968]
[1743273073531,4.30746,1819.5,1819.4,4.117]
[1743273074425,3.2078,1819.5,1819.2,2.1348]
[1743273074625,3.2078,1819.5,1819.4,1.09968]
[1743273074823,4.30746,1819.5,1819.2,7.35154]
[1743273075026,5.80296,1819.5,1819.3,1.09972]
[1743273075228,5.80296,1819.5,1819.4,1.42]
[1743273075625,1.09962,1819.5,1819.4,1.42]
[1743273075825,0.00824674,1819.6,1819.5,1.09962]
[1743273076027,0.00824674,1819.6,1819.5,5.21562]
[1743273076629,0.00824674,1819.6,1819.4,1.42824674]
[1743273076825,0.00824674,1819.6,1819.5,5.21562]
[1743273077022,1.10780674,1819.6,1819.4,2.52788674]
[1743273077223,0.00824674,1819.6,1819.5,1.09962]
[1743273077427,0.00824674,1819.6,1819.5,2.51962]
[1743273080032,1.10780674,1819.6,1819.5,1.42]
[1743273080231,1.09962,1819.5,1819.4,0.00824674]
[1743273080438,2.46562,1819.5,1819.4,0.00824674]
[1743273080836,4.31562674,1819.6,1819.4,1.10792674]
[1743273081132,0.00824674,1819.6,1819.5,1.09962]
[1743273081338,1.09962,1819.5,1819.4,2.61607674]
[1743273081736,3.21604674,1819.6,1819.5,1.09962]
[1743273081935,3.21604674,1819.6,1819.5,2.60782]
[1743273082736,4.31560674,1819.6,1819.5,1.5082]
[1743273082938,3.21604674,1819.6,1819.5,2.60782]
[1743273083435,0.00824674,1819.6,1819.5,2.60782]
[1743273084026,3.21604674,1819.6,1819.5,2.60782]
[1743273084337,0.00824674,1819.6,1819.5,2.60782]
[1743273084539,0.00824674,1819.6,1819.5,3.36172]
[1743273085343,1.09962,1819.5,1819.4,0.00824674]
[1743273085838,2.58472,1819.5,1819.4,0.00824674]
[1743273086437,3.2078,1820.2,1819.4,2.50824674]
[1743273086743,4.6929,1820.2,1820.1,1.09925]
[1743273086940,3.2078,1820.2,1820.1,1.09925]
[1743273087133,4.30689,1820.4,1820.2,1.09917]
[1743273087433,1.09919,1820.2,1820.1,1.3656]
[1743273087632,3.2078,1820.2,1819.8,4.114]
[1743273087833,2.49955,1820.1,1819.9,1.09933]
[1743273088033,2.49955,1820.1,1819.9,2.46493]
[1743273088338,1.09928,1820.1,1819.9,1.3656]
[1743273088640,3.2078,1820.2,1820.0,1.0993]
[1743273088836,1.4003,1820.1,1820.0,1.0993]
[1743273089042,1.09917,1820.3,1820.1,1.09925]
[1743273089240,2.49943,1820.3,1820.2,1.3656]
[1743273090134,1.09932,1820.0,1819.8,5.21339]
[1743273090338,4.6081,1820.3,1819.9,1.4838]
[1743273090641,1.09925,1820.1,1820.0,1.09926]
[1743273090836,1.09924,1820.2,1820.0,1.09926]
[1743273091038,2.48455,1820.2,1820.0,1.09926]
[1743273091343,2.48453,1820.2,1819.8,4.114]
[1743273091648,4.30697,1820.3,1819.9,2.74844]
[1743273091940,4.30693,1820.3,1820.0,1.403]
[1743273092133,3.2078,1820.3,1820.2,1.09919]
[1743273092333,4.30693,1820.3,1820.2,1.09919]
[1743273092733,3.2078,1820.3,1820.2,1.09919]
[1743273092928,4.30693,1820.3,1820.2,1.09919]
[1743273093130,3.2078,1820.3,1820.1,4.113]
[1743273093333,23.60322014,1821.5,1820.7,1.09885]
[1743273093334,4.7067,1821.0,1820.7,1.09885]
[1743273093530,1.09879,1820.9,1820.7,1.09885]
[1743273093734,1.09883,1820.8,1820.7,0.00824674]
[1743273094144,2.59769,1820.9,1820.7,1.10709674]
[1743273094441,2.59769,1820.9,1820.7,0.00824674]
[1743273094841,2.59769,1820.9,1820.7,1.10710674]
[1743273095842,1.09883,1820.8,1820.7,0.00824674]
[1743273096035,2.59773,1820.8,1820.7,0.00824674]
[1743273096236,1.4989,1820.8,1820.7,1.10713674]
[1743273096735,3.2078,1821.2,1820.8,2.74708]
[1743273097052,1.09868,1821.1,1820.9,1.09877]
[1743273097233,1.09868,1821.1,1821.0,1.09871]
[1743273097234,1.4376,1821.1,1821.0,1.09871]
[1743273097740,2.53627,1821.1,1820.9,1.09873]
[1743273098240,23.50760379,1821.5,1821.1,1.09865]
[1743273098446,23.50760379,1821.5,1821.4,1.09847]
[1743273099839,4.30613,1821.7,1821.5,1.0984]
[1743273100043,3.2078,1821.7,1821.6,1.09835]
[1743273100341,0.7098,1822.2,1821.5,7.3178]
[1743273100534,1.3771,1822.2,1821.9,1.09811]
[1743273100734,1.3771,1822.2,1822.0,1.09809]
[1743273101136,1.09807,1822.1,1821.7,3.91384674]
[1743273101336,2.47513,1822.2,1822.0,1.0981]
[1743273101640,2.47511,1822.2,1822.1,4.11]
[1743273101939,2.47511,1822.2,1822.1,5.20805]
[1743273101940,1.3771,1822.2,1822.1,5.20805]
[1743273102135,1.09799,1822.2,1822.1,4.11]
[1743273102342,3.2078,1822.5,1822.1,5.208]
[1743273102544,1.09793,1822.3,1822.1,4.11]
[1743273102737,1.09793,1822.3,1822.1,5.20803]
[1743273102939,1.09799,1822.2,1822.1,4.11]
[1743273103140,3.2078,1822.3,1821.8,0.6906]
[1743273103338,3.2078,1822.3,1821.8,4.108]
[1743273103339,1.09816,1822.0,1821.8,4.108]
[1743273103546,2.54007,1821.9,1821.8,4.108]
[1743273103737,2.54007,1821.9,1821.7,0.00824674]
[1743273103738,1.4419,1821.9,1821.7,0.00824674]
[1743273104042,1.09823,1821.8,1821.7,0.00824674]
[1743273104844,1.09853,1821.3,1821.2,4.107]
[1743273105242,3.2078,1821.7,1821.3,1.09851]
[1743273105544,1.3709,1821.8,1821.4,1.4611]
[1743273105844,1.3709,1821.8,1821.4,1.46934674]
[1743273105845,1.09841,1821.5,1821.4,1.46934674]
[1743273106246,2.46931,1821.5,1821.4,1.46934674]
[1743273106638,1.09841,1821.5,1821.4,1.46934674]
[1743273107246,1.3709,1821.7,1821.4,1.46934674]
[1743273107441,1.09841,1821.5,1821.4,1.46934674]
[1743273107746,4.30621,1821.5,1821.4,1.46934674]
[1743273108546,3.2078,1821.5,1821.1,50.766]
[1743273108852,1.09859,1821.2,1821.1,1.5024]
[1743273109346,1.09857,1821.3,1821.1,2.60105]
[1743273109644,3.2078,1821.5,1821.1,1.5024]
[1743273109845,1.4951,1821.6,1821.2,1.5024]
[1743273110042,1.09842,1821.5,1821.3,1.09853]
[1743273110239,1.09842,1821.5,1821.4,1.5024]
[1743273110440,0.00824674,1821.8,1821.4,1.5024]
[1743273110641,1.10651674,1821.8,1821.6,1.09833]
[1743273110847,1.10651674,1821.8,1821.6,6.70673]
[1743273111047,1.10651674,1821.8,1821.6,5.6084]
[1743273111352,2.60161674,1821.8,1821.7,1.5024]
[1743273111943,1.50334674,1821.8,1821.7,2.60069]
[1743273112948,2.60157674,1821.8,1821.7,1.5024]
[1743273113854,1.50334674,1821.8,1821.7,2.60069]
[1743273114354,2.60157674,1821.8,1821.7,2.60069]
[1743273114552,2.60157674,1821.8,1821.7,1.5024]
[1743273114752,1.50334674,1821.8,1821.7,2.60069]
[1743273114955,2.60157674,1821.8,1821.7,2.60069]
[1743273115167,1.50334674,1821.8,1821.7,2.60069]
[1743273115454,0.00824674,1821.8,1821.7,2.60069]
[1743273116548,1.10647674,1821.8,1821.7,1.5024]
[1743273116750,0.00824674,1821.8,1821.4,4.105]
[1743273116945,3.2078,1821.6,1821.4,4.105]
[1743273117245,1.09843,1821.5,1821.3,1.09849]
[1743273117451,1.09846,1821.5,1821.3,1.09852]
[1743273117652,2.51401,1821.5,1821.2,7.3128]
[1743273117854,1.4156,1821.5,1821.4,1.09847]
[1743273118154,2.51401,1821.5,1821.4,1.09847]
[1743273118454,2.51401,1821.5,1821.3,1.09849]
[1743273119553,1.4156,1821.5,1821.4,1.09847]
[1743273119753,2.51402,1821.5,1821.3,1.09853]
[1743273120556,1.09853,1821.3,1821.2,3.2078]
[1743273120754,1.4156,1821.5,1821.4,1.09847]
[1743273120949,3.21604674,1821.8,1821.4,1.09847]
[1743273121152,1.5088,1821.7,1821.3,2.74628]
[1743273121354,1.5088,1821.7,1821.6,1.09835]
[1743273121355,2.6071,1821.7,1821.6,1.09835]
[1743273121558,2.6071,1821.7,1821.5,1.09836]
[1743273121754,1.09835,1821.6,1821.5,1.09836]
[1743273122056,2.60715,1821.6,1821.5,1.09836]
[1743273122453,1.5088,1821.6,1821.5,1.09836]
[1743273122650,0.00824674,1821.8,1821.7,1.09829]
[1743273123161,3.2078,1822.2,1822.1,1.09805]
[1743273123461,3.2078,1822.2,1821.8,2.74558]
[1743273123462,4.3058,1822.2,1822.0,5.20207]
[1743273123850,4.3058,1822.2,1822.1,1.09805]
[1743273124363,3.2078,1822.2,1822.1,1.09805]
[1743273124757,1.09802,1822.2,1822.0,5.21030674]
[1743273125059,2.52772,1822.2,1822.0,5.21030674]
[1743273125256,2.52771,1822.2,1822.0,5.21031674]
[1743273125758,1.09805,1822.1,1822.0,0.00824674]
[1743273125962,2.52775,1822.1,1822.0,0.00824674]
[1743273126157,6.46745,1822.1,1822.0,0.00824674]
[1743273127050,3.96745,1822.1,1822.0,0.00824674]
[1743273127564,1.09802,1822.2,1822.0,1.10632674]
[1743273127871,2.6059,1822.2,1822.0,1.10630674]
[1743273129053,1.09805,1822.1,1822.0,0.00824674]
[1743273129256,2.60595,1822.1,1822.0,0.00824674]
[1743273130361,3.31675,1822.1,1822.0,0.00824674]
[1743273131160,1.5079,1822.1,1822.0,0.00824674]
[1743273131357,1.5079,1822.1,1822.0,1.10635674]
[1743273131659,1.09805,1822.1,1822.0,0.00824674]
[1743273131859,2.58545,1822.1,1822.0,0.00824674]
[1743273133055,2.58545,1822.1,1822.0,1.10635674]
[1743273133455,2.58545,1822.1,1822.0,0.00824674]
[1743273134057,2.58545,1822.1,1822.0,1.10635674]
[1743273134254,1.09805,1822.1,1822.0,0.00824674]
[1743273135057,4.592,1822.2,1822.0,1.10631674]
[1743273135058,2.48222,1822.2,1822.0,1.10631674]
[1743273135262,2.48222,1822.2,1822.1,1.4455]
[1743273135664,1.09805,1822.1,1822.0,0.00824674]
[1743273135967,2.51695,1822.1,1822.0,1.39364674]
[1743273136258,1.4189,1822.1,1822.0,1.39364674]
[1743273136450,0.00824674,1822.3,1822.1,1.098]
[1743273136662,1.4189,1822.2,1822.0,1.10630674]
[1743273136856,2.51689,1822.2,1822.0,1.80160674]
[1743273137056,2.51689,1822.2,1822.1,1.09805]
[1743273137258,1.4189,1822.2,1822.1,1.09805]
[1743273137457,1.09799,1822.2,1822.1,1.09805]
[1743273137657,1.10618674,1822.3,1822.1,1.09801]
[1743273138056,0.00824674,1822.3,1822.2,1.09799]
[1743273138655,3.2078,1822.7,1822.2,4.30579]
[1743273138864,5.77171,1822.7,1822.5,1.09777]
[1743273139064,1.09775,1822.6,1822.4,1.09782]
[1743273139365,4.30537,1822.9,1822.7,1.09765]
[1743273139561,1.4662,1822.8,1822.7,1.09765]
[1743273140166,3.2078,1822.9,1822.8,1.09763]
[1743273140366,2.56364,1823.1,1822.9,1.09752]
[1743273141169,1.4662,1823.1,1823.0,1.0975]
[1743273141763,1.09756,1822.9,1822.8,0.00824674]
[1743273141963,3.2078,1823.0,1822.3,7.3078]
[1743273142170,3.2078,1823.0,1822.4,1.413]
[1743273142372,1.0977,1822.7,1822.5,1.09777]
[1743273142672,1.09766,1822.8,1822.6,1.09775]
[1743273142872,1.3831,1822.9,1822.4,4.15763]
[1743273143061,0.00824674,1822.9,1822.6,3.2078]
[1743273143261,0.00824674,1822.9,1822.8,1.09757]
[1743273143462,2.48052,1823.2,1823.0,1.09746]
[1743273143864,1.09749,1823.1,1822.9,1.85164]
[1743273144067,3.2078,1823.1,1822.7,1.09764]
[1743273144281,1.3831,1823.0,1822.7,4.1]
[1743273144467,1.09753,1823.0,1822.8,1.09758]
[1743273144871,2.51993,1823.0,1822.9,1.09756]
[1743273145068,1.4224,1823.0,1822.9,1.09756]
[1743273145667,3.2078,1823.1,1823.0,1.0975]
[1743273146072,4.30524,1823.1,1822.9,1.09753]
[1743273146272,1.09752,1823.0,1822.8,1.81269]
[1743273146469,5.72768,1823.1,1822.9,1.09755]
[1743273146673,4.6302,1823.1,1822.8,0.7151]
[1743273146874,3.2078,1823.1,1823.0,1.0975]
[1743273147074,3.2078,1823.5,1823.4,1.09726]
[1743273147274,4.30492,1823.7,1823.3,5.5414]
[1743273147475,4.30492,1823.7,1823.5,1.09718]
[1743273147879,4.30492,1823.7,1823.4,1.09724]
[1743273147880,1.09714,1823.6,1823.4,1.09724]
[1743273148081,4.30494,1823.7,1823.5,1.0972]
[1743273148280,4.30494,1823.7,1823.3,5.5414]
[1743273148281,3.2078,1823.7,1823.3,5.5414]
[1743273148481,4.30491,1823.7,1823.5,1.09719]
[1743273148683,3.2078,1823.7,1823.5,1.09719]
[1743273149184,4.30492,1823.7,1823.5,1.09719]
[1743273149684,1.09715,1823.6,1823.4,1.09722]
[1743273149874,3.2078,1823.7,1823.3,0.7273]
[1743273150081,1.09732,1823.3,1823.2,0.00824674]
[1743273150575,4.30512,1823.3,1823.2,0.00824674]
[1743273151177,5.73642,1823.3,1823.2,0.00824674]
[1743273152183,4.6391,1823.3,1823.2,0.00824674]
[1743273152379,1.4313,1823.3,1823.2,1.10562674]
[1743273152588,1.4313,1823.3,1823.2,0.00824674]
[1743273152775,1.4313,1823.6,1823.2,3.21604674]
[1743273152980,2.52849,1823.6,1823.3,4.798]
[1743273153181,1.4313,1823.6,1823.3,4.798]
[1743273153386,4.6391,1823.6,1823.3,4.798]
[1743273153585,5.73629,1823.6,1823.4,1.09724]
[1743273153786,2.52848,1823.6,1823.4,1.09725]
[1743273154587,2.52848,1823.6,1823.3,5.8953]
[1743273154588,3.2078,1823.5,1823.3,5.8953]
[1743273154889,5.76485,1823.5,1823.4,1.4575]
[1743273155085,2.557,1823.5,1823.4,1.4575]
[1743273155483,1.09732,1823.3,1823.2,4.10524674]
[1743273155682,1.09732,1823.3,1823.2,5.56274674]
[1743273156987,4.30512,1823.3,1823.2,1.46574674]
[1743273158189,4.30512,1823.3,1823.2,0.00824674]
[1743273158485,4.30512,1823.3,1822.8,3.2078]
[1743273158486,1.09756,1822.9,1822.8,3.2078]
[1743273159093,1.09755,1823.0,1822.8,5.67301]
[1743273159290,1.09755,1823.0,1822.9,1.3676]
[1743273159492,1.10571674,1823.1,1822.9,2.46513]
[1743273159690,1.0975,1823.0,1822.9,1.3676]
[1743273159889,3.2078,1823.0,1822.7,0.00824674]
[1743273160186,1.09775,1822.6,1822.5,1.4417]
[1743273160383,3.2078,1822.8,1822.5,1.4417]
[1743273160582,1.09775,1822.6,1822.5,1.4417]
[1743273161598,2.5397,1822.7,1822.5,1.4417]
[1743273161787,2.5397,1822.7,1822.5,2.53949]
[1743273162487,3.2078,1822.8,1822.5,6.63445]
[1743273162694,1.09773,1822.7,1822.6,0.7354]
[1743273163191,3.9338,1823.0,1822.7,1.09769]
[1743273163386,3.21604674,1823.1,1822.9,1.09756]
[1743273163588,3.21604674,1823.1,1823.0,1.4158]
[1743273163890,1.10568674,1823.1,1823.0,1.4158]
[1743273164086,0.00824674,1823.1,1823.0,2.5133]
[1743273164394,0.00824674,1823.1,1823.0,5.7211]
[1743273166897,1.10568674,1823.1,1823.0,8.7186]
[1743273167092,1.10568674,1823.1,1823.0,1.4158]
[1743273167298,1.09763,1822.8,1822.7,4.095]
[1743273167592,1.09763,1822.8,1822.7,1.4281]
[1743273167783,3.2078,1822.8,1822.5,4.095]
[1743273167989,2.5563,1822.7,1822.6,1.4281]
[1743273168389,1.09767,1822.8,1822.6,1.4281]
[1743273168590,1.09766,1822.8,1822.6,2.52583]
[1743273168793,1.4586,1822.9,1822.6,1.4281]
[1743273168992,1.09765,1822.8,1822.7,1.4281]
[1743273169490,1.09781,1822.5,1822.4,0.00824674]
[1743273169692,1.09808,1822.1,1821.8,3.2078]
[1743273169895,1.09812,1822.0,1821.8,3.2078]
[1743273170097,3.2078,1822.3,1821.8,3.2078]
[1743273170396,1.4546,1822.4,1822.2,1.09794]
[1743273170596,3.2078,1822.8,1822.3,2.60307]
[1743273170801,0.00824674,1822.5,1822.4,1.5052]
[1743273170987,2.56065674,1822.5,1822.4,1.5052]
[1743273171892,1.46284674,1822.5,1822.4,1.5052]
[1743273172194,2.56065674,1822.5,1822.4,1.5052]
[1743273172605,3.9518,1823.0,1822.4,9.90587]
[1743273172792,5.4005,1823.0,1822.6,1.09769]
[1743273172992,1.09763,1822.8,1822.7,1.4685]
[1743273173202,1.09761,1822.9,1822.7,1.4685]
[1743273173496,1.09763,1822.8,1822.7,1.4685]
[1743273174395,2.55454674,1822.9,1822.7,1.4685]
[1743273174589,2.55454674,1822.9,1822.7,2.56617]
[1743273174789,2.55454674,1822.9,1822.7,1.4685]
[1743273174991,2.55454674,1822.9,1822.7,2.56618]
[1743273175397,0.00824674,1822.9,1822.8,4.30543]
[1743273176104,1.09763,1822.8,1822.7,1.4685]
[1743273176298,2.58113,1822.8,1822.7,1.4685]
[1743273177396,1.09783,1822.5,1822.3,3.2078]
[1743273177603,1.09783,1822.5,1822.4,1.4616]
[1743273178505,1.09779,1822.6,1822.4,2.55945]
[1743273178799,1.09781,1822.5,1822.4,1.4616]
[1743273179598,4.30561,1822.5,1822.2,0.7514]
[1743273179793,4.30561,1822.5,1821.4,0.41647008]
[1743273179794,3.2078,1822.3,1821.4,10.04788]
[1743273179993,0.748,1822.4,1822.2,1.09797]
[1743273180305,1.09787,1822.4,1822.3,1.419]
[1743273180702,2.54237,1822.4,1822.3,1.419]
[1743273181909,1.09793,1822.3,1822.2,0.00824674]
[1743273182109,5.75003,1822.3,1822.2,0.00824674]
[1743273182304,9.89702,1822.3,1821.8,4.094]
[1743273182599,1.09813,1822.0,1821.7,2.48694]
[1743273183006,3.2078,1822.3,1821.7,1.3887]
[1743273183202,5.75007,1822.3,1822.0,1.09808]
[1743273183402,1.09792,1822.4,1822.1,2.48672]
[1743273183602,1.09793,1822.3,1822.2,1.3887]
[1743273184199,4.6521,1822.5,1822.2,1.3887]
[1743273184705,1.09789,1822.4,1822.2,1.3887]
[1743273185000,1.4388,1822.4,1822.2,2.48666]
[1743273185200,1.09793,1822.3,1822.2,1.3887]
[1743273185402,3.2078,1822.5,1822.2,2.48669]
[1743273185601,1.09789,1822.4,1822.2,2.48669]
[1743273185801,1.09793,1822.3,1822.2,1.3887]
[1743273186203,4.30573,1822.3,1822.2,1.3887]
[1743273186498,1.09805,1822.1,1822.0,0.00824674]
[1743273186711,1.09805,1822.1,1822.0,1.47114674]
[1743273187805,4.30585,1822.1,1822.0,1.47114674]
[1743273188400,0.7497,1822.4,1822.0,4.67894674]
[1743273188705,2.46215,1822.3,1822.1,1.09803]
[1743273188903,2.46215,1822.3,1822.2,1.4331]
[1743273190026,1.09788,1822.4,1822.2,2.53109]
[1743273190504,2.47938,1822.4,1822.2,2.53109]
[1743273190707,2.47938,1822.4,1822.2,2.53108]
[1743273191106,1.3815,1822.4,1822.2,1.4331]
[1743273191306,2.47937,1822.4,1822.2,2.53104]
[1743273191503,1.09793,1822.3,1822.2,1.4331]
[1743273191706,1.09805,1822.1,1822.0,0.00824674]
[1743273192104,4.30564,1822.5,1822.3,1.09791]
[1743273192407,5.68711,1822.5,1822.4,1.5069]
[1743273193310,4.5893,1822.5,1822.0,0.00824674]
[1743273193514,1.09799,1822.2,1822.1,1.4773]
[1743273193704,4.30576,1822.3,1822.1,1.4773]
[1743273193909,1.09796,1822.3,1822.1,2.57529]
[1743273194307,2.53666,1822.3,1822.2,1.4773]
[1743273194911,1.09792,1822.4,1822.2,2.57529]
[1743273195207,4.6465,1822.5,1822.3,1.09788]
[1743273195402,3.2078,1822.5,1822.4,2.57517]
[1743273198805,4.30561,1822.5,1822.4,2.57517]
[1743273199011,4.30561,1822.5,1822.4,1.4773]
[1743273199518,1.09781,1822.5,1822.4,2.57513]
[1743273200005,1.09781,1822.5,1822.4,1.4773]
[1743273200205,3.2078,1822.5,1822.0,5.19831674]
[1743273200421,4.30574,1822.3,1822.2,1.09799]
[1743273200707,0.00824674,1822.9,1822.8,1.09763]
[1743273200909,23.50760379,1823.2,1823.1,1.09744]
[1743273201114,23.50760379,1823.2,1823.1,8.39724]
[1743273202412,0.00824674,1823.3,1823.2,1.09738]
[1743273202614,0.00824674,1823.3,1823.2,2.46598]
[1743273202813,0.00824674,1823.3,1823.2,3.1405852]
[1743273203912,0.00824674,1823.3,1823.2,3.8323852]
[1743273204414,2.51114,1823.8,1823.2,3.8323852]
[1743273204614,1.4534,1823.7,1823.3,1.09729]
[1743273204808,1.0972,1823.6,1823.4,1.3686]
[1743273205003,1.4534,1823.5,1823.4,2.0432052]
[1743273205312,1.09712,1823.7,1823.4,2.46586]
[1743273205513,2.55876674,1823.7,1823.4,2.46586]
[1743273205913,1.09715,1823.6,1823.4,1.3686]
[1743273206113,2.46235,1823.6,1823.4,1.3686]
[1743273206314,2.46235,1823.6,1823.5,0.67351793]
[1743273206705,1.3652,1823.6,1823.5,1.77071793]
[1743273207011,1.37344674,1823.7,1823.5,0.67351793]
[1743273207315,1.37344674,1823.7,1823.6,0.67351793]
[1743273207504,1.37344674,1823.7,1823.6,1.77065793]
[1743273207907,1.37344674,1823.7,1823.6,0.67351793]
[1743273208509,1.37344674,1823.7,1823.6,1.77065793]
[1743273209416,1.37344674,1823.7,1823.6,0.67351793]
[1743273209611,1.37344674,1823.7,1823.6,1.77065793]
[1743273211223,1.37344674,1823.7,1823.6,1.09714]
[1743273212514,0.00824674,1823.7,1823.6,4.30494]
[1743273213017,3.20024,1824.0,1823.8,1.09698]
[1743273213520,3.20024,1824.0,1823.7,1.4413]
[1743273213521,2.4574,1824.0,1823.9,1.4413]
[1743273214218,1.3605,1824.0,1823.9,2.53826]
[1743273214708,1.0969,1824.0,1823.9,1.4413]
[1743273215110,1.45787063,1824.1,1823.9,2.53826]
[1743273215111,2.55476063,1824.1,1823.9,2.53826]
[1743273215313,1.0969,1824.0,1823.9,1.4413]
[1743273215512,2.5466,1824.0,1823.9,1.4413]
[1743273216116,1.09702,1823.8,1823.6,9.06494743]
[1743273216316,1.09701,1823.9,1823.7,2.55378]
[1743273216715,1.09695,1824.0,1823.8,1.09702]
[1743273216911,1.09695,1824.0,1823.9,1.4567]
[1743273217118,1.09702,1823.8,1823.7,0.67202743]
[1743273217617,1.09708,1823.7,1823.6,2.12872743]
[1743273217827,1.09714,1823.6,1823.5,0.67202743]
[1743273218119,1.09736,1823.3,1823.1,1.76946743]
[1743273218319,1.09738,1823.2,1823.1,0.67202743]
[1743273218524,4.30518,1823.2,1823.1,0.67202743]
[1743273218834,3.2078,1823.2,1823.1,1.09744]
[1743273219021,3.2078,1823.2,1823.0,1.43484674]
[1743273219022,1.09744,1823.1,1823.0,1.43484674]
[1743273219219,4.30523,1823.2,1823.0,1.43484674]
[1743273219523,4.30523,1823.2,1823.0,2.53233674]
[1743273219723,3.21597063,1824.1,1823.3,2.74328]
[1743273220024,0.00817063,1824.1,1823.8,3.2078]
[1743273220217,1.09694,1824.0,1823.8,3.2078]
[1743273220418,1.09696,1823.9,1823.8,3.2078]
[1743273221320,2.74257,1823.8,1823.0,0.00824674]
[1743273221519,1.09729,1823.4,1823.1,3.19913]
[1743273221825,1.09729,1823.4,1823.2,2.50598]
[1743273222027,3.2078,1823.6,1823.2,1.4086]
[1743273222214,1.09725,1823.5,1823.2,2.50596]
[1743273222725,3.2078,1823.6,1823.3,1.09728]
[1743273222931,1.0972,1823.5,1823.4,1.4086]
[1743273224125,3.2078,1823.6,1823.4,1.4086]
[1743273224430,1.09701,1823.9,1823.5,4.086]
[1743273224630,3.2078,1824.0,1823.7,1.09707]
[1743273224830,1.09698,1823.9,1823.8,1.505]
[1743273225318,3.2078,1824.0,1823.8,1.505]
[1743273225319,4.30473,1824.0,1823.8,1.505]
[1743273225522,3.2078,1824.0,1823.9,1.09696]
[1743273225919,1.10506063,1824.1,1823.9,1.80634]
[1743273226128,1.10506063,1824.1,1824.0,1.505]
[1743273226327,0.00817063,1824.1,1824.0,2.6019]
[1743273229923,3.2078,1824.3,1824.2,1.09678]
[1743273230128,5.48067,1825.3,1824.2,4.086]
[1743273230129,1.09657,1824.6,1824.2,4.086]
[1743273230324,1.09666,1824.4,1824.3,5.4481]
[1743273230632,0.7393,1824.7,1824.3,5.4481]
[1743273230827,3.2078,1824.8,1824.4,1.3621]
[1743273231128,1.0966,1824.5,1824.4,1.3621]
[1743273231334,3.2078,1824.6,1824.4,1.3621]
[1743273232224,1.09648,1824.7,1824.4,2.45871]
[1743273232423,3.2078,1824.8,1824.4,1.3621]
[1743273232828,1.0966,1824.5,1824.4,1.3621]
[1743273233235,1.09657,1824.6,1824.4,2.45876]
[1743273233534,1.09659,1824.6,1824.4,1.3621]
[1743273233830,1.09659,1824.6,1824.5,0.66855316]
[1743273234032,3.2078,1824.8,1824.5,0.66855316]
[1743273234235,1.09648,1824.7,1824.6,1.4747]
[1743273234840,2.54788,1824.7,1824.6,2.14325316]
[1743273236539,1.09666,1824.4,1824.3,0.0082239]
[1743273236736,4.30446,1824.4,1824.3,0.0082239]
[1743273237633,1.09697,1823.9,1823.7,4.084]
[1743273237832,2.74196,1824.3,1823.9,1.09696]
[1743273237833,3.2078,1824.0,1823.9,1.09696]
[1743273238143,1.09687,1824.1,1823.7,5.5806]
[1743273238439,2.48124,1824.3,1824.0,1.09689]
[1743273238635,1.09678,1824.2,1824.1,2.2187]
[1743273238940,2.48949389,1824.3,1824.1,2.2187]
[1743273239141,2.48949389,1824.3,1824.2,1.4966]
[1743273239142,2.48944389,1824.3,1824.2,1.4966]
[1743273241637,1.09678,1824.2,1824.1,0.7221]
[1743273241838,1.09684,1824.1,1824.0,0.0082239]
[1743273242242,2.50794,1824.1,1824.0,0.0082239]
[1743273242836,7.9941,1824.1,1823.2,4.083]